fUST/lending_fUST_20251218
["ID","MTS","AMOUNT","RATE_DAILY","PERIOD"]
[398957664,1766022638557,-500.5481818,0.00041369,120]
[398957666,1766022638567,-297.32579163,0.00041369,120]
[398957667,1766022638577,-500.90392322,0.00041369,120]
[398957669,1766022638587,-501.7625128,0.00041369,120]
[398957671,1766022638596,-503.10274932,0.00041369,120]
[398957672,1766022638606,-501.51434872,0.00041369,120]
[398957674,1766022638615,-500.0,0.00041369,120]
[398957676,1766022638624,-503.52344097,0.00041369,120]
[398957678,1766022638633,-502.98361217,0.00041369,120]
[398957679,1766022638642,-513.09050078,0.00041369,120]
[398957681,1766022638651,-500.77351054,0.00041369,120]
[398957683,1766022638660,-270.60436191,0.00041369,2]
[398957684,1766022638669,-500.0,0.00041369,120]
[398957686,1766022638679,-503.89677704,0.00041369,120]
[398957688,1766022638689,-501.9047948,0.00041369,120]
[398957690,1766022638697,-258.34447114,0.00041369,120]
[398957692,1766022638706,-509.55646088,0.00041369,120]
[398957693,1766022638716,-501.172527,0.00041369,120]
[398957695,1766022638726,-367.84944353,0.00041369,120]
[398957697,1766022638735,-505.65364322,0.00041369,120]
[398957699,1766022638744,-287.64751492,0.00041369,120]
[398957701,1766022638754,-475.24669626,0.00041369,120]
[398957702,1766022638763,-1000.0,0.00041369,120]
[398957704,1766022638772,-246.20260161,0.00041369,120]
[398957706,1766022638782,-319.43391859,0.00041369,120]
[398957708,1766022638791,-500.0,0.00041369,120]
[398957709,1766022638800,-520.15728535,0.00041369,120]
[398957711,1766022638809,-3794.15,0.00041369,120]
[398957713,1766022638819,-500.0,0.00041369,120]
[398957715,1766022638829,-406.77531775,0.00041369,120]
[398957717,1766022638838,-497.4597942,0.00041369,120]
[398957719,1766022638847,-560.98175272,0.00041369,120]
[398957720,1766022638859,-255.3532079,0.00041369,120]
[398957722,1766022638871,-218.29187522,0.00041369,120]
[398957724,1766022638880,-500.0,0.00041369,120]
[398957726,1766022638889,-611.32800733,0.00041369,120]
[398957728,1766022638898,-457.20069751,0.00041369,120]
[398957729,1766022638907,-500.0,0.00041369,120]
[398957731,1766022638916,-500.0,0.00041369,120]
[398957733,1766022638926,-500.0,0.00041643,120]
[398957735,1766022638937,-500.0,0.00041643,120]
[398957737,1766022638946,-500.0,0.00041643,120]
[398957738,1766022638955,-285.72457997,0.00041643,120]
[398957741,1766022638969,-214.27542003,0.00041643,120]
[398957742,1766022638978,-500.0,0.00041643,120]
[398957744,1766022638987,-500.0,0.00041643,120]
[398957746,1766022638997,-1000.0,0.00041643,120]
[398957748,1766022639006,-500.0,0.00041643,120]
[398957750,1766022639016,-3794.15,0.00041643,120]
[398957751,1766022639027,-500.0,0.00041643,120]
[398957753,1766022639036,-500.0,0.00041643,120]
[398957755,1766022639045,-500.0,0.00041643,120]
[398957757,1766022639054,-500.0,0.00041917,120]
[398957759,1766022639063,-220.17388272,0.00041917,120]
[398957761,1766022639071,-230.66957932,0.00041917,120]
[398957762,1766022639080,-290.13,0.00041917,120]
[398957764,1766022639089,-500.0,0.00041917,120]
[398957766,1766022639098,-500.0,0.00041917,120]
[398957768,1766022639107,-1000.0,0.00041917,120]
[398957770,1766022639116,-225.61304501,0.00041917,120]
[398957772,1766022639126,-3794.15,0.00041917,120]
[398957773,1766022639134,-157.67418605,0.00041917,120]
[398957775,1766022639144,-500.0,0.00041917,120]
[398957777,1766022639153,-500.0,0.00041917,120]
[398957779,1766022639162,-320.22895878,0.00042191,120]
[398957781,1766022639170,-500.0,0.00042191,120]
[398957783,1766022639179,-618.16549852,0.00042191,120]
[398957784,1766022639187,-1000.0,0.00042191,120]
[398957786,1766022639196,-3794.15,0.00042191,120]
[398957788,1766022639204,-457.55455489,0.00042191,120]
[398957790,1766022639214,-500.0,0.00042191,120]
[398957792,1766022639223,-153.0,0.000422,120]
[398957794,1766022639233,-372.47580824,0.00042465,120]
[398957796,1766022639242,-1000.0,0.00042465,120]
[398957797,1766022639251,-3593.27574485,0.00042465,120]
[398957897,1766022640435,-200.87425515,0.00042465,120]
[398957898,1766022640444,-500.0,0.00042465,120]
[398957899,1766022640454,-676.85193745,0.00042739,120]
[398957996,1766022643416,-323.14806255,0.00042739,120]
[398957997,1766022643427,-3794.15,0.00042739,120]
[398957998,1766022643437,-500.0,0.00042739,120]
[398957999,1766022643447,-1752.66,0.000428,2]
[398958000,1766022643458,-227.02,0.000428,30]
[398958001,1766022643469,-397.45376482,0.00043013,120]
[398958002,1766022643478,-3794.15,0.00043013,120]
[398958003,1766022643488,-500.0,0.00043013,120]
[398958004,1766022643497,-3794.15,0.00043287,120]
[398958005,1766022643507,-500.0,0.00043287,120]
[398958006,1766022643517,-202.98,0.00043452,120]
[398958007,1766022643527,-3794.15,0.00043561,120]
[398958008,1766022643535,-500.0,0.00043561,120]
[398958009,1766022643544,-153.0,0.000437,120]
[398958010,1766022643555,-500.0,0.00043835,120]
[398958011,1766022643565,-3794.15,0.00043835,120]
[398958012,1766022643574,-500.0,0.00043835,120]
[398958013,1766022643583,-500.0,0.00043972,120]
[398958014,1766022643595,-151.0,0.00044,19]
[398958015,1766022643606,-492.11083844,0.00044109,120]
[398958016,1766022643616,-3794.15,0.00044109,120]
[398958017,1766022643625,-500.0,0.00044109,120]
[398958018,1766022643634,-3794.15,0.00044383,120]
[398958019,1766022643642,-500.0,0.00044383,120]
[398958020,1766022643652,-3794.15,0.00044657,120]
[398958021,1766022643661,-500.0,0.00044657,120]
[398958022,1766022643670,-3794.15,0.00044931,120]
[398958023,1766022643679,-500.0,0.00044931,120]
[398958024,1766022643688,-153.0,0.000451,120]
[398958025,1766022643700,-3794.15,0.00045205,120]
[398958026,1766022643710,-500.0,0.00045205,120]
[398958027,1766022643719,-3794.15,0.00045479,120]
[398958028,1766022643728,-500.0,0.00045479,120]
[398958029,1766022643738,-3794.15,0.00045753,120]
[398958030,1766022643747,-500.0,0.00045753,120]
[398958031,1766022643758,-3794.15,0.00046027,120]
[398958032,1766022643767,-500.0,0.00046027,120]
[398958033,1766022643776,-203.94765286,0.00046143,15]
[398958034,1766022643786,-151.0,0.000463,25]
[398958035,1766022643795,-3794.15,0.00046301,120]
[398958036,1766022643805,-500.0,0.00046301,120]
[398958037,1766022643816,-3794.15,0.00046575,120]
[398958038,1766022643826,-500.0,0.00046575,120]
[398958039,1766022643837,-153.0,0.000466,120]
[398958040,1766022643847,-3794.15,0.00046849,120]
[398958041,1766022643862,-500.0,0.00046849,120]
[398958042,1766022643873,-3794.15,0.00047123,120]
[398958043,1766022643882,-500.0,0.00047123,120]
[398958044,1766022643892,-3794.38998199,0.00047397,120]
[398958045,1766022643903,-305.285963,0.00047397,120]
[398958046,1766022643912,-1752.66,0.000474,2]
[398958047,1766022643921,-227.02,0.000474,30]
[398958048,1766022643930,-153.0,0.00048,120]
[398958049,1766022643939,-151.0,0.000486,28]
[398958050,1766022643948,-158.14153642,0.00049,120]
[398958051,1766022643957,-151.0,0.00049,25]
[398958052,1766022643967,-153.0,0.000495,120]
[398958053,1766022643977,-182.0,0.00049589,120]
[398958054,1766022643986,-362.1,0.0005,120]
[398958055,1766022643995,-151.0,0.000508,27]
[398958056,1766022644004,-153.0,0.000509,120]
[398958057,1766022644014,-151.0,0.000509,28]
[398958058,1766022644023,-104000.0,0.00051,120]
[398958059,1766022644033,-153.0,0.000524,120]
[398958060,1766022644042,-151.0,0.000526,22]
[398958061,1766022644051,-151.0,0.000532,23]
[398958062,1766022644060,-153.0,0.000538,120]
[398958063,1766022644070,-151.0,0.000544,21]
[398958064,1766022644079,-1005.47,0.00055,90]
[398958065,1766022644088,-182.34509786,0.000551,2]
[398958066,1766022644097,-10000.0,0.000552,120]
[398958067,1766022644106,-153.0,0.000553,120]
[398958068,1766022644116,-151.0,0.000555,27]
[398958069,1766022644125,-162.38,0.000556,14]
[398958070,1766022644134,-151.0,0.000562,24]
[398958071,1766022644143,-10000.0,0.000562,120]
[398958072,1766022644152,-236.8793826,0.00056262,120]
[398958073,1766022644161,-153.0,0.000567,120]
[398958074,1766022644171,-227.02,0.000567,30]
[398958075,1766022644181,-151.0,0.00057,29]
[398958076,1766022644190,-10000.0,0.000572,120]
[398958077,1766022644199,-1752.66,0.000572,2]
[398958078,1766022644208,-151.0,0.000578,22]
[398958079,1766022644218,-3895.9185496,0.00058,120]
[398958080,1766022644227,-151.0,0.00058,23]
[398958081,1766022644239,-232.0,0.00058,120]
[398958082,1766022644248,-153.0,0.000582,120]
[398958083,1766022644258,-10000.0,0.000582,120]
[398958084,1766022644267,-10000.0,0.000592,120]
[398958085,1766022644277,-151.0,0.000595,25]
[398958086,1766022644287,-153.0,0.000596,120]
[398958087,1766022644296,-151.0,0.000598,27]
[398958088,1766022644305,-151.0,0.000598,27]
[398958089,1766022644315,-1331.6309743,0.00059854,2]
[398958090,1766022644324,-2010.7739312,0.00059854,2]
[398958095,1766022646538,-16550.2137347,0.00059854,2]
[398958096,1766022646547,-8286.54057908,0.00059899,120]
[398958130,1766023832431,-157.729808,0.00013699,2]
[398958132,1766023832440,-615.0,0.00013699,2]
[398958134,1766023832450,-150.0,0.00017551,2]
[398958136,1766023832460,-177.0,0.00019551,2]
[398958138,1766023832469,-157.729808,0.00021404,2]
[398958140,1766023832478,-157.729808,0.0002911,2]
[398958142,1766023832488,-999.0,0.0003655,2]
[398958144,1766023832497,-157.729808,0.00036815,2]
[398958156,1766023832603,-300.0,0.00037499,2]
[398958158,1766023832613,-203.62805773,0.00040985,120]
[398958160,1766023832623,-2009.60023164,0.00040994,2]
[398958187,1766023838468,-181.16466094,0.00040993,31]
[398958188,1766023838478,-500.0,0.00040993,31]
[398958189,1766023838488,-500.0,0.00040993,31]
[398958190,1766023838498,-500.0,0.00040993,31]
[398958191,1766023838507,-500.0,0.00040993,31]
[398958192,1766023838517,-500.0,0.00040993,31]
[398958193,1766023838526,-500.0,0.00040993,31]
[398958194,1766023838535,-500.0,0.00040993,31]
[398958195,1766023838545,-500.0,0.00040993,31]
[398958196,1766023838554,-500.0,0.00040993,31]
[398958197,1766023838563,-500.0,0.00040993,31]
[398958198,1766023838574,-500.0,0.00040993,31]
[398958199,1766023838584,-500.0,0.00040993,31]
[398958200,1766023838593,-500.0,0.00040993,31]
[398958201,1766023838602,-500.0,0.00040993,31]
[398958202,1766023838612,-500.0,0.00040993,31]
[398958203,1766023838621,-500.0,0.00040993,31]
[398958204,1766023838631,-500.0,0.00040993,31]
[398958205,1766023838643,-40582.55026031,0.00040994,2]
[398958206,1766023838652,-385.09,0.00040994,60]
[398958207,1766023838662,-2775.21003385,0.00040995,2]
[398958208,1766023838671,-304.21125225,0.00041085,3]
[398958209,1766023838680,-500.0,0.00041089,7]
[398958210,1766023838690,-500.0,0.00041089,31]
[398958211,1766023838699,-553.1383979,0.00041089,31]
[398958212,1766023838708,-500.0,0.00041089,31]
[398958213,1766023838719,-477.88765834,0.00041089,31]
[398958214,1766023838728,-500.52594594,0.00041089,7]
[398958215,1766023838737,-500.0,0.00041089,7]
[398958216,1766023838747,-500.0,0.00041089,31]
[398958217,1766023838756,-500.0,0.00041089,31]
[398958218,1766023838766,-570.13783063,0.00041089,31]
[398958219,1766023838776,-63218.09085801,0.0004109,7]
[398958220,1766023838785,-151.185,0.00041094,60]
[398958221,1766023838795,-500.0,0.00041095,120]
[398958222,1766023838804,-500.0,0.00041095,120]
[398958223,1766023838814,-500.0,0.00041095,120]
[398958224,1766023838823,-500.0,0.00041095,120]
[398958225,1766023838832,-500.0,0.00041095,120]
[398958226,1766023838841,-500.0,0.00041095,120]
[398958227,1766023838850,-500.0,0.00041095,120]
[398958228,1766023838860,-646.5390303,0.00041095,120]
[398958229,1766023838869,-500.14388568,0.00041095,120]
[398958230,1766023838878,-500.60567682,0.00041095,120]
[398958231,1766023838887,-500.70683913,0.00041095,120]
[398958232,1766023838897,-500.0,0.00041095,120]
[398958233,1766023838907,-500.83291052,0.00041095,120]
[398958234,1766023838915,-500.0,0.00041095,120]
[398958235,1766023838925,-500.15401448,0.00041095,120]
[398958236,1766023838934,-500.30225099,0.00041095,120]
[398958237,1766023838943,-507.6117113,0.00041095,120]
[398958238,1766023838953,-500.20312825,0.00041095,120]
[398958239,1766023838962,-500.0,0.00041095,120]
[398958240,1766023838971,-500.0,0.00041095,120]
[398958241,1766023838980,-500.57455451,0.00041095,120]
[398958242,1766023838989,-500.98193116,0.00041095,120]
[398958243,1766023838999,-501.18809928,0.00041095,120]
[398958244,1766023839010,-500.87530767,0.00041095,120]
[398958245,1766023839019,-501.00257265,0.00041095,120]
[398958246,1766023839029,-501.03488543,0.00041095,120]
[398958247,1766023839038,-500.0,0.00041095,120]
[398958248,1766023839048,-500.0,0.00041095,120]
[398958249,1766023839058,-501.03371464,0.00041095,120]
[398958250,1766023839067,-503.3873727,0.00041095,120]
[398958251,1766023839077,-503.73548249,0.00041095,120]
[398958252,1766023839087,-500.0,0.00041095,120]
[398958253,1766023839097,-503.34963514,0.00041095,120]
[398958254,1766023839106,-502.25247473,0.00041095,120]
[398958255,1766023839115,-501.38056718,0.00041095,120]
[398958256,1766023839124,-503.54582206,0.00041095,120]
[398958257,1766023839134,-211.48011132,0.00041095,120]
[398958258,1766023839144,-500.27990216,0.00041095,120]
[398958259,1766023839153,-500.90359232,0.00041095,120]
[398958260,1766023839163,-502.12843956,0.00041095,120]
[398958261,1766023839172,-501.67365232,0.00041095,120]
[398958262,1766023839182,-502.65171706,0.00041095,120]
[398958263,1766023839191,-500.0,0.00041095,120]
[398958264,1766023839200,-501.38338584,0.00041095,120]
[398958265,1766023839209,-500.0,0.00041095,120]
[398958266,1766023839218,-503.29810854,0.00041095,120]
[398958267,1766023839228,-614.26856205,0.00041095,120]
[398958268,1766023839237,-500.0,0.00041095,120]
[398958269,1766023839246,-500.73879945,0.00041095,120]
[398958270,1766023839255,-500.0,0.00041095,120]
[398958271,1766023839265,-500.17272106,0.00041095,120]
[398958272,1766023839274,-501.2432652,0.00041095,120]
[398958273,1766023839283,-500.12923169,0.00041095,120]
[398958274,1766023839292,-501.55394543,0.00041095,120]
[398958275,1766023839301,-501.30043971,0.00041095,120]
[398958276,1766023839311,-500.0,0.00041095,120]
[398958277,1766023839319,-500.15949024,0.00041095,120]
[398958278,1766023839328,-502.23846759,0.00041095,120]
[398958279,1766023839337,-501.90529421,0.00041095,120]
[398958280,1766023839347,-503.20966336,0.00041095,120]
[398958281,1766023839356,-500.0,0.00041095,120]
[398958282,1766023839366,-502.69279226,0.00041095,120]
[398958283,1766023839453,-540.48545742,0.00041095,120]
[398958284,1766023839462,-620.93382649,0.00041095,120]
[398958285,1766023839472,-500.34943029,0.00041095,120]
[398958286,1766023839481,-500.0,0.00041095,120]
[398958287,1766023839490,-500.58112889,0.00041095,120]
[398958288,1766023839499,-500.4102908,0.00041095,120]
[398958289,1766023839508,-500.27792652,0.00041095,120]
[398958290,1766023839518,-501.34170623,0.00041095,120]
[398958291,1766023839527,-505.25301298,0.00041095,120]
[398958292,1766023839536,-502.0908781,0.00041095,120]
[398958293,1766023839545,-500.0,0.00041095,120]
[398958294,1766023839554,-500.0,0.00041095,120]
[398958295,1766023839564,-500.0,0.00041095,120]
[398958296,1766023839573,-504.78139367,0.00041095,120]
[398958297,1766023839582,-500.0,0.00041095,120]
[398958298,1766023839591,-523.8417853,0.00041095,120]
[398958299,1766023839601,-581.96949243,0.00041095,120]
[398958300,1766023839610,-500.30287949,0.00041095,120]
[398958301,1766023839619,-501.29182809,0.00041095,120]
[398958302,1766023839629,-500.94462163,0.00041095,120]
[398958303,1766023839639,-502.70633081,0.00041095,120]
[398958304,1766023839650,-501.31804442,0.00041095,120]
[398958305,1766023839659,-501.25165588,0.00041095,120]
[398958306,1766023839669,-500.14925519,0.00041095,120]
[398958307,1766023839678,-501.4007188,0.00041095,120]
[398958308,1766023839689,-500.95669885,0.00041095,120]
[398958309,1766023839698,-502.23306724,0.00041095,120]
[398958310,1766023839707,-503.30208237,0.00041095,120]
[398958311,1766023839719,-640.44371008,0.00041095,120]
[398958312,1766023839728,-501.31995821,0.00041095,120]
[398958313,1766023839737,-502.18564415,0.00041095,120]
[398958314,1766023839746,-503.67102999,0.00041095,120]
[398958315,1766023839755,-500.0,0.00041095,120]
[398958316,1766023839764,-500.0,0.00041095,120]
[398958317,1766023839774,-551.40645261,0.00041095,120]
[398958318,1766023839783,-500.73754962,0.00041095,120]
[398958319,1766023839792,-500.0,0.00041095,120]
[398958320,1766023839801,-501.42561073,0.00041095,120]
[398958321,1766023839811,-502.27817875,0.00041095,120]
[398958322,1766023839820,-502.90092513,0.00041095,120]
[398958323,1766023839829,-500.49068932,0.00041095,120]
[398958324,1766023839838,-541.85869686,0.00041095,120]
[398958325,1766023839847,-500.0,0.00041095,120]
[398958326,1766023839856,-500.0,0.00041095,120]
[398958327,1766023839867,-500.0,0.00041095,120]
[398958328,1766023839876,-500.0,0.00041095,120]
[398958329,1766023839885,-200.4974229,0.00041095,120]
[398958330,1766023839894,-500.0,0.00041095,120]
[398958331,1766023839903,-531.56081082,0.00041095,120]
[398958332,1766023839913,-500.0,0.00041095,120]
[398958333,1766023839922,-503.7110895,0.00041095,120]
[398958334,1766023839931,-500.0,0.00041095,120]
[398958335,1766023839940,-500.12173037,0.00041095,120]
[398958336,1766023839949,-500.0,0.00041095,120]
[398958337,1766023839958,-500.0,0.00041095,120]
[398958338,1766023839967,-509.24125122,0.00041095,120]
[398958339,1766023839976,-500.82958253,0.00041095,120]
[398958340,1766023839985,-500.0,0.00041095,120]
[398958341,1766023839994,-501.12298878,0.00041095,120]
[398958342,1766023840003,-502.63741707,0.00041095,120]
[398958343,1766023840012,-500.0,0.00041095,120]
[398958344,1766023840022,-500.0,0.00041095,120]
[398958345,1766023840031,-500.0,0.00041095,120]
[398958346,1766023840040,-506.57593895,0.00041095,120]
[398958347,1766023840049,-500.0,0.00041095,120]
[398958348,1766023840057,-500.28983711,0.00041095,120]
[398958349,1766023840066,-501.30196334,0.00041095,120]
[398958350,1766023840075,-506.82585653,0.00041095,120]
[398958351,1766023840084,-500.0,0.00041095,120]
[398958352,1766023840093,-500.0,0.00041095,120]
[398958353,1766023840102,-500.0,0.00041095,120]
[398958354,1766023840111,-500.0,0.00041095,120]
[398958355,1766023840120,-500.0,0.00041095,120]
[398958356,1766023840129,-500.0,0.00041095,120]
[398958357,1766023840138,-500.0,0.00041095,120]
[398958359,1766023840147,-501.19538956,0.00041095,120]
[398958360,1766023840156,-509.19533875,0.00041095,120]
[398958361,1766023840165,-500.0,0.00041095,120]
[398958362,1766023840174,-500.0,0.00041095,120]
[398958363,1766023840182,-500.0,0.00041095,120]
[398958364,1766023840192,-500.0,0.00041095,120]
[398958365,1766023840201,-500.0,0.00041095,120]
[398958366,1766023840210,-500.0,0.00041095,120]
[398958367,1766023840218,-500.0,0.00041095,120]
[398958368,1766023840227,-500.0,0.00041095,120]
[398958369,1766023840236,-500.0,0.00041095,120]
[398958370,1766023840245,-500.0,0.00041095,120]
[398958371,1766023840254,-500.0,0.00041095,120]
[398958372,1766023840263,-500.0,0.00041095,120]
[398958373,1766023840272,-500.0,0.00041095,120]
[398958374,1766023840281,-504.96898667,0.00041095,120]
[398958375,1766023840290,-500.0,0.00041095,120]
[398958376,1766023840299,-500.0,0.00041095,120]
[398958377,1766023840307,-506.81672779,0.00041095,120]
[398958378,1766023840316,-500.0,0.00041095,120]
[398958379,1766023840325,-500.0,0.00041095,120]
[398958380,1766023840334,-500.0,0.00041095,120]
[398958381,1766023840343,-500.0,0.00041095,120]
[398958382,1766023840352,-500.0,0.00041095,120]
[398958383,1766023840360,-500.0,0.00041095,120]
[398958384,1766023840369,-500.0,0.00041095,120]
[398958385,1766023840378,-500.0,0.00041095,120]
[398958386,1766023840387,-500.76609274,0.00041095,100]
[398958387,1766023840395,-500.0,0.00041095,120]
[398958388,1766023840404,-502.51867122,0.00041095,120]
[398958389,1766023840413,-500.0,0.00041095,120]
[398958390,1766023840423,-504.69680728,0.00041095,120]
[398958391,1766023840432,-631.34179181,0.00041095,120]
[398958392,1766023840442,-500.0,0.00041095,120]
[398958393,1766023840451,-436.79902623,0.00041095,120]
[398958394,1766023840460,-500.0,0.00041095,120]
[398958395,1766023840468,-501.4445023,0.00041095,120]
[398958396,1766023840477,-500.0,0.00041095,120]
[398958397,1766023840486,-500.0,0.00041095,120]
[398958398,1766023840495,-500.0,0.00041095,120]
[398958399,1766023840505,-554.92085126,0.00041095,120]
[398958400,1766023840515,-500.0,0.00041095,120]
[398958401,1766023840524,-500.0,0.00041095,120]
[398958402,1766023840532,-500.0,0.00041095,120]
[398958403,1766023840541,-502.48164653,0.00041095,120]
[398958404,1766023840550,-500.0,0.00041095,120]
[398958405,1766023840560,-503.90461937,0.00041095,120]
[398958406,1766023840569,-500.0,0.00041095,120]
[398958407,1766023840578,-500.0,0.00041095,120]
[398958408,1766023840587,-500.0,0.00041095,120]
[398958409,1766023840596,-555.02261181,0.00041095,120]
[398958410,1766023840605,-500.0,0.00041095,120]
[398958411,1766023840613,-502.06551225,0.00041095,120]
[398958412,1766023840622,-500.0,0.00041095,120]
[398958413,1766023840631,-500.0,0.00041095,120]
[398958414,1766023840642,-501.13299458,0.00041095,120]
[398958415,1766023840653,-500.0,0.00041095,120]
[398958416,1766023840662,-564.01726198,0.00041095,120]
[398958417,1766023840671,-500.0,0.00041095,120]
[398958418,1766023840680,-500.0,0.00041095,120]
[398958419,1766023840690,-501.23660568,0.00041095,120]
[398958420,1766023840699,-502.3084165,0.00041095,120]
[398958421,1766023840708,-500.0,0.00041095,120]
[398958422,1766023840717,-500.0,0.00041095,120]
[398958423,1766023840725,-500.0,0.00041095,120]
[398958424,1766023840734,-500.0,0.00041095,120]
[398958425,1766023840743,-500.0,0.00041095,120]
[398958426,1766023840752,-501.96722379,0.00041095,120]
[398958427,1766023840760,-500.0,0.00041095,120]
[398958428,1766023840769,-500.0,0.00041095,120]
[398958429,1766023840779,-500.0,0.00041095,120]
[398958430,1766023840787,-500.0,0.00041095,120]
[398958431,1766023840796,-500.0,0.00041095,120]
[398958432,1766023840805,-500.0,0.00041095,120]
[398958433,1766023840814,-500.0,0.00041095,120]
[398958434,1766023840823,-500.0,0.00041095,120]
[398958435,1766023840831,-500.0,0.00041095,120]
[398958436,1766023840840,-500.0,0.00041095,120]
[398958437,1766023840849,-500.0,0.00041095,120]
[398958438,1766023840858,-502.11393963,0.00041095,120]
[398958439,1766023840866,-500.7447683,0.00041095,120]
[398958440,1766023840875,-500.0,0.00041095,120]
[398958441,1766023840885,-502.49176116,0.00041095,120]
[398958442,1766023840894,-500.0,0.00041095,120]
[398958443,1766023840903,-500.0,0.00041095,120]
[398958444,1766023840912,-500.0,0.00041095,30]
[398958445,1766023840920,-500.0,0.00041095,120]
[398958446,1766023840929,-500.0,0.00041095,120]
[398958447,1766023840938,-500.0,0.00041095,120]
[398958448,1766023840947,-500.0,0.00041095,120]
[398958450,1766023840956,-500.0,0.00041095,120]
[398958451,1766023840965,-501.4591741,0.00041095,120]
[398958452,1766023840974,-502.399207,0.00041095,120]
[398958453,1766023840982,-500.0,0.00041095,120]
[398958454,1766023840992,-502.6911076,0.00041095,120]
[398958455,1766023841002,-500.0,0.00041095,120]
[398958456,1766023841011,-500.0,0.00041095,120]
[398958457,1766023841020,-501.20931131,0.00041095,120]
[398958458,1766023841029,-500.0,0.00041095,120]
[398958459,1766023841107,-500.47360457,0.00041095,120]
[398958460,1766023841118,-500.0,0.00041095,120]
[398958461,1766023841128,-500.63617679,0.00041095,120]
[398958462,1766023841137,-500.0,0.00041095,120]
[398958463,1766023841146,-500.0,0.00041095,120]
[398958464,1766023841156,-503.54005432,0.00041095,120]
[398958465,1766023841166,-500.0,0.00041095,120]
[398958466,1766023841177,-500.0,0.00041095,120]
[398958467,1766023841187,-501.25889209,0.00041095,120]
[398958468,1766023841198,-150.0,0.00041095,60]
[398958469,1766023841209,-500.0,0.00041095,120]
[398958470,1766023841218,-500.0,0.00041095,120]
[398958471,1766023841229,-500.49169038,0.00041095,120]
[398958472,1766023841240,-500.0,0.00041095,120]
[398958473,1766023841251,-500.0,0.00041095,120]
[398958474,1766023841260,-500.0,0.00041095,120]
[398958475,1766023841270,-500.0,0.00041095,120]
[398958476,1766023841280,-500.0,0.00041095,120]
[398958477,1766023841289,-501.83126581,0.00041095,120]
[398958478,1766023841299,-500.0,0.00041095,120]
[398958479,1766023841309,-500.0,0.00041095,120]
[398958480,1766023841318,-500.0,0.00041095,120]
[398958481,1766023841328,-500.0,0.00041095,120]
[398958482,1766023841338,-501.18552753,0.00041095,120]
[398958483,1766023841347,-500.0,0.00041095,120]
[398958484,1766023841358,-500.0,0.00041095,120]
[398958485,1766023841367,-500.0,0.00041095,120]
[398958486,1766023841377,-500.0,0.00041095,120]
[398958487,1766023841387,-500.0,0.00041095,120]
[398958488,1766023841397,-501.77092549,0.00041095,120]
[398958489,1766023841407,-500.0,0.00041095,120]
[398958490,1766023841416,-506.15779733,0.00041095,120]
[398958491,1766023841426,-500.0,0.00041095,120]
[398958492,1766023841435,-500.0,0.00041095,120]
[398958493,1766023841444,-500.0,0.00041095,120]
[398958494,1766023841453,-500.0,0.00041095,120]
[398958495,1766023841462,-500.77489006,0.00041095,120]
[398958496,1766023841472,-500.0,0.00041095,120]
[398958497,1766023841481,-538.86745358,0.00041095,120]
[398958498,1766023841490,-500.98104391,0.00041095,120]
[398958499,1766023841499,-502.32751417,0.00041095,120]
[398958500,1766023841508,-502.82054757,0.00041095,120]
[398958501,1766023841518,-500.0,0.00041095,120]
[398958502,1766023841527,-503.14305108,0.00041095,120]